fUSD/lending_fUSD_20250111
["ID","MTS","AMOUNT","RATE_DAILY","PERIOD"]
[348506611,1736596243032,-500.0,9.898e-05,2]
[348506612,1736596243041,-500.0,9.898e-05,2]
[348506613,1736596243051,-500.0,9.898e-05,2]
[348506614,1736596243060,-500.0,9.898e-05,2]
[348506615,1736596243070,-892.97,9.898e-05,2]
[348506616,1736596243081,-500.0,9.898e-05,2]
[348506617,1736596243091,-500.0,9.898e-05,2]
[348506618,1736596243101,-503.71145374,9.898e-05,2]
[348506619,1736596243111,-500.0,9.898e-05,2]
[348506620,1736596243121,-500.0,9.898e-05,2]
[348506621,1736596243131,-500.0,9.898e-05,2]
[348506622,1736596243140,-503.45673192,9.898e-05,2]
[348506623,1736596243150,-500.0,9.898e-05,2]
[348506629,1736596243354,-500.0,9.898e-05,2]
[348506630,1736596243363,-500.0,9.898e-05,2]
[348506632,1736596243372,-500.0,9.898e-05,2]
[348506634,1736596243382,-500.0,9.898e-05,2]
[348506637,1736596243390,-500.0,9.898e-05,2]
[348506640,1736596243399,-500.0,9.898e-05,2]
[348506643,1736596243408,-500.0,9.898e-05,2]
[348506646,1736596243417,-500.0,9.898e-05,2]
[348506649,1736596243427,-500.0,9.898e-05,2]
[348506653,1736596243436,-500.0,9.898e-05,2]
[348506655,1736596243445,-500.0,9.898e-05,2]
[348506658,1736596243454,-500.0,9.898e-05,2]
[348506661,1736596243463,-500.0,9.898e-05,2]
[348506665,1736596243474,-500.0,9.898e-05,2]
[348506668,1736596243483,-500.0,9.898e-05,2]
[348506671,1736596243492,-500.0,9.898e-05,2]
[348506674,1736596243502,-500.0,9.898e-05,2]
[348506677,1736596243511,-500.0,9.898e-05,2]
[348506680,1736596243520,-500.0,9.898e-05,2]
[348506683,1736596243529,-500.0,9.898e-05,2]
[348506685,1736596243539,-883.1,9.898e-05,2]
[348506687,1736596243548,-500.0,9.898e-05,2]
[348506689,1736596243557,-500.0,9.898e-05,2]
[348506691,1736596243566,-500.0,9.898e-05,2]
[348506693,1736596243576,-500.0,9.898e-05,2]
[348506695,1736596243589,-428.88474339,9.898e-05,2]
[348506697,1736596243598,-500.0,9.898e-05,2]
[348506699,1736596243607,-500.0,9.898e-05,2]
[348506701,1736596243616,-500.0,9.898e-05,2]
[348506703,1736596243625,-500.0,9.898e-05,2]
[348506705,1736596243634,-325.85247939,9.898e-05,2]
[348506706,1736596243643,-500.0,9.898e-05,2]
[348506707,1736596243652,-500.0,9.898e-05,2]
[348506708,1736596243661,-500.0,9.898e-05,2]
[348506709,1736596243670,-500.0,9.898e-05,2]
[348506710,1736596243679,-500.0,9.898e-05,2]
[348506711,1736596243689,-500.0,9.898e-05,2]
[348506712,1736596243698,-500.0,9.898e-05,2]
[348506713,1736596243707,-500.0,9.898e-05,2]
[348506714,1736596243715,-500.0,9.898e-05,2]
[348506715,1736596243724,-500.0,9.898e-05,2]
[348506716,1736596243733,-500.0,9.898e-05,2]
[348506717,1736596243743,-150.0,9.898e-05,2]
[348506718,1736596243752,-500.0,9.898e-05,2]
[348506719,1736596243761,-500.0,9.898e-05,2]
[348506720,1736596243770,-516.11630185,9.898e-05,2]
[348506721,1736596243779,-500.0,9.898e-05,2]
[348506722,1736596243789,-5000.0,9.898e-05,2]
[348506723,1736596243798,-500.0,9.898e-05,2]
[348506724,1736596243807,-601.65,9.898e-05,2]
[348506725,1736596243816,-500.0,9.898e-05,2]
[348506726,1736596243827,-500.0,9.898e-05,2]
[348506727,1736596243838,-500.0,9.898e-05,2]
[348506728,1736596243847,-500.0,9.898e-05,2]
[348506729,1736596243857,-500.0,9.898e-05,2]
[348506730,1736596243866,-500.0,9.898e-05,2]
[348506731,1736596243875,-500.0,9.898e-05,2]
[348506732,1736596243884,-500.0,9.898e-05,2]
[348506733,1736596243893,-506.20397142,9.898e-05,2]
[348506734,1736596243902,-500.0,9.898e-05,2]
[348506735,1736596243912,-500.0,9.898e-05,2]
[348506736,1736596243921,-500.0,9.898e-05,2]
[348506737,1736596243930,-500.0,9.898e-05,2]
[348506738,1736596243940,-525.07,9.898e-05,2]
[348506739,1736596243949,-885.34,9.898e-05,2]
[348506740,1736596243958,-329.36086463,9.898e-05,2]
[348506741,1736596243967,-500.0,9.898e-05,2]
[348506742,1736596243976,-500.0,9.898e-05,2]
[348506743,1736596243986,-495.78022634,9.898e-05,2]
[348506744,1736596243995,-500.0,9.898e-05,2]
[348506745,1736596244005,-500.0,9.898e-05,2]
[348506746,1736596244014,-505.1446142,9.898e-05,2]
[348506747,1736596244023,-500.0,9.898e-05,2]
[348506748,1736596244032,-500.0,9.898e-05,2]
[348506749,1736596244041,-801.83,9.898e-05,2]
[348506750,1736596244050,-500.0,9.898e-05,2]
[348506751,1736596244059,-500.0,9.898e-05,2]
[348506752,1736596244068,-500.0,9.898e-05,2]
[348506753,1736596244077,-500.0,9.898e-05,2]
[348506754,1736596244088,-500.0,9.898e-05,2]
[348506755,1736596244097,-500.0,9.898e-05,2]
[348506756,1736596244106,-500.0,9.898e-05,2]
[348506757,1736596244115,-500.0,9.898e-05,2]
[348506758,1736596244124,-1000.13,9.898e-05,2]
[348506759,1736596244133,-500.0,9.898e-05,2]
[348506760,1736596244143,-500.0,9.898e-05,2]
[348506761,1736596244152,-500.0,9.898e-05,2]
[348506762,1736596244161,-500.0,9.898e-05,2]
[348506763,1736596244171,-500.0,9.898e-05,2]
[348506764,1736596244180,-500.0,9.898e-05,2]
[348506765,1736596244192,-500.0,9.898e-05,2]
[348506766,1736596244203,-500.0,9.898e-05,2]
[348506767,1736596244213,-500.0,9.898e-05,2]
[348506768,1736596244223,-500.0,9.898e-05,2]
[348506769,1736596244233,-500.0,9.898e-05,2]
[348506770,1736596244243,-500.0,9.898e-05,2]
[348506771,1736596244252,-500.0,9.898e-05,2]
[348506772,1736596244265,-500.0,9.898e-05,2]
[348506773,1736596244275,-500.0,9.898e-05,2]
[348506774,1736596244285,-500.0,9.898e-05,2]
[348506775,1736596244295,-500.0,9.898e-05,2]
[348506776,1736596244305,-500.0,9.898e-05,2]
[348506777,1736596244315,-500.0,9.898e-05,2]
[348506778,1736596244324,-500.0,9.898e-05,2]
[348506779,1736596244335,-500.0,9.898e-05,2]
[348506780,1736596244345,-672.82,9.898e-05,2]
[348506781,1736596244354,-500.0,9.898e-05,2]
[348506782,1736596244363,-500.0,9.898e-05,2]
[348506783,1736596244373,-500.0,9.898e-05,2]
[348506784,1736596244383,-500.0,9.898e-05,2]
[348506785,1736596244392,-500.0,9.898e-05,2]
[348506786,1736596244402,-500.0,9.898e-05,2]
[348506787,1736596244411,-4278.41,9.898e-05,2]
[348506788,1736596244420,-500.0,9.898e-05,2]
[348506789,1736596244430,-500.0,9.898e-05,2]
[348506790,1736596244439,-500.0,9.898e-05,2]
[348506791,1736596244449,-500.0,9.898e-05,2]
[348506792,1736596244458,-500.0,9.898e-05,2]
[348506793,1736596244467,-490.75182993,9.898e-05,2]
[348506794,1736596244477,-500.0,9.898e-05,2]
[348506795,1736596244486,-500.0,9.898e-05,2]
[348506796,1736596244495,-500.0,9.898e-05,2]
[348506797,1736596244505,-500.0,9.898e-05,2]
[348506798,1736596244514,-500.0,9.898e-05,2]
[348506799,1736596244524,-879.57,9.898e-05,2]
[348506800,1736596244533,-500.0,9.898e-05,2]
[348506801,1736596244543,-500.0,9.898e-05,2]
[348506802,1736596244553,-500.0,9.898e-05,2]
[348506803,1736596244563,-500.0,9.898e-05,2]
[348506804,1736596244572,-844.74,9.898e-05,2]
[348506805,1736596244583,-500.0,9.898e-05,2]
[348506806,1736596244592,-500.0,9.898e-05,2]
[348506807,1736596244601,-814.37,9.898e-05,2]
[348506808,1736596244611,-500.0,9.898e-05,2]
[348506809,1736596244621,-609.37,9.898e-05,2]
[348506810,1736596244630,-500.0,9.898e-05,2]
[348506811,1736596244640,-500.0,9.898e-05,2]
[348506812,1736596244650,-500.0,9.898e-05,2]
[348506813,1736596244659,-500.0,9.898e-05,2]
[348506814,1736596244669,-500.0,9.898e-05,2]
[348506815,1736596244678,-500.0,9.898e-05,2]
[348506816,1736596244687,-500.0,9.898e-05,2]
[348506817,1736596244697,-500.0,9.898e-05,2]
[348506818,1736596244706,-500.0,9.898e-05,2]
[348506819,1736596244715,-500.0,9.898e-05,2]
[348506820,1736596244725,-503.16128689,9.898e-05,2]
[348506821,1736596244734,-2856.04,9.898e-05,2]
[348506822,1736596244743,-500.0,9.898e-05,2]
[348506823,1736596244753,-500.0,9.898e-05,2]
[348506824,1736596244762,-502.73216524,9.898e-05,2]
[348506825,1736596244772,-500.0,9.898e-05,2]
[348506826,1736596244782,-610.95,9.898e-05,2]
[348506827,1736596244791,-1172.7,9.898e-05,2]
[348506828,1736596244801,-514.77,9.898e-05,2]
[348506829,1736596244810,-500.0,9.898e-05,2]
[348506830,1736596244819,-500.0,9.898e-05,2]
[348506831,1736596244828,-500.0,9.898e-05,2]
[348506832,1736596244839,-587.45,9.898e-05,2]
[348506833,1736596244849,-500.0,9.898e-05,2]
[348506834,1736596244858,-500.0,9.898e-05,2]
[348506835,1736596244867,-199.5943394,9.899e-05,2]
[348506836,1736596244877,-500.95715125,9.899e-05,2]
[348506837,1736596244886,-500.86196972,9.899e-05,2]
[348506838,1736596244896,-502.45543431,9.899e-05,2]
[348506839,1736596244906,-1377.95,9.899e-05,2]
[348506840,1736596244915,-500.0,9.899e-05,2]
[348506841,1736596244925,-501.51169025,9.899e-05,2]
[348506842,1736596244934,-500.68372873,9.899e-05,2]
[348506843,1736596244944,-523.85237392,9.899e-05,2]
[348506844,1736596244954,-2744.47,9.899e-05,2]
[348506845,1736596244963,-500.83601335,9.899e-05,2]
[348506846,1736596244973,-501.44734998,9.899e-05,2]
[348506847,1736596244982,-501.53718292,9.899e-05,2]
[348506848,1736596244992,-501.47855078,9.899e-05,2]
[348506849,1736596245001,-501.1358817,9.899e-05,2]
[348506850,1736596245011,-1630.7,9.899e-05,2]
[348506851,1736596245020,-500.83861056,9.899e-05,2]
[348506852,1736596245030,-562.6590362,9.899e-05,2]
[348506853,1736596245039,-500.9994758,9.899e-05,2]
[348506854,1736596245049,-501.05623384,9.899e-05,2]
[348506855,1736596245059,-500.0,9.899e-05,2]
[348506856,1736596245068,-1000.0,9.899e-05,2]
[348506857,1736596245077,-500.90448516,9.899e-05,2]
[348506858,1736596245088,-2556.83,9.899e-05,2]
[348506859,1736596245098,-500.83896186,9.899e-05,2]
[348506860,1736596245107,-501.30679021,9.899e-05,2]
[348506861,1736596245117,-505.02330009,9.899e-05,2]
[348506862,1736596245126,-500.0,9.899e-05,2]
[348506863,1736596245136,-1577.16,9.899e-05,2]
[348506864,1736596245145,-3568.78,9.899e-05,2]
[348506865,1736596245154,-500.0,9.899e-05,2]
[348506866,1736596245163,-379.82324336,9.899e-05,2]
[348506867,1736596245173,-500.0,9.899e-05,2]
[348506868,1736596245182,-500.0,9.899e-05,2]
[348506869,1736596245192,-1343.06,9.899e-05,2]
[348506870,1736596245202,-500.0,9.899e-05,2]
[348506871,1736596245212,-500.0,9.899e-05,2]
[348506872,1736596245221,-1196.49,9.899e-05,2]
[348506873,1736596245231,-500.0,9.899e-05,2]
[348506874,1736596245240,-1311.0,9.899e-05,2]
[348506875,1736596245249,-1628.88,9.899e-05,2]
[348506876,1736596245262,-1420.14,9.899e-05,2]
[348506877,1736596245270,-1360.97,9.899e-05,2]
[348506878,1736596245279,-2542.05,9.899e-05,2]
[348506879,1736596245288,-1429.7,9.899e-05,2]
[348506880,1736596245297,-1960.18,9.899e-05,2]
[348506881,1736596245306,-1234.77,9.899e-05,2]
[348506882,1736596245316,-1376.49,9.899e-05,2]
[348506883,1736596245326,-500.0,9.899e-05,2]
[348506884,1736596245336,-1388.63,9.899e-05,2]
[348506885,1736596245346,-1741.92,9.899e-05,2]
[348506886,1736596245355,-1080.58,9.899e-05,2]
[348506887,1736596245365,-800.0,9.938e-05,2]
[348506888,1736596245375,-150.848698,9.973e-05,2]
[348506889,1736596245384,-500.0,9.973e-05,2]
[348506890,1736596245393,-160.838678,9.973e-05,2]
[348506891,1736596245403,-476.624,9.978e-05,2]
[348506892,1736596245413,-902.87445271,9.998e-05,3]
[348506893,1736596245422,-500.0,9.998e-05,2]
[348506894,1736596245432,-3476.13558,9.998e-05,2]
[348506895,1736596245441,-861.7,9.999e-05,2]
[348506896,1736596245451,-850.67,9.999e-05,2]
[348506897,1736596245460,-500.0,9.999e-05,2]
[348506898,1736596245470,-763.93,9.999e-05,2]
[348506899,1736596245479,-500.0,9.999e-05,2]
[348506900,1736596245489,-573.38,9.999e-05,2]
[348506901,1736596245499,-1034.36,9.999e-05,2]
[348506902,1736596245508,-500.0,9.999e-05,2]
[348506903,1736596245519,-500.0,9.999e-05,2]
[348506904,1736596245528,-1165.84,9.999e-05,2]
[348506905,1736596245538,-1286.39,9.999e-05,2]
[348506906,1736596245548,-1479.36,9.999e-05,2]
[348506907,1736596245557,-500.0,9.999e-05,2]
[348506908,1736596245567,-500.0,9.999e-05,2]
[348506909,1736596245576,-389.98,9.999e-05,2]
[348506910,1736596245588,-1184.05,9.999e-05,2]
[348506911,1736596245599,-6055.45,9.999e-05,2]
[348506912,1736596245609,-1004.16,9.999e-05,2]
[348506913,1736596245619,-1557.21,9.999e-05,2]
[348506914,1736596245629,-623.12,9.999e-05,2]
[348506915,1736596245638,-908.38,9.999e-05,2]
[348506916,1736596245648,-659.36,9.999e-05,2]
[348506917,1736596245658,-500.0,9.999e-05,2]
[348506918,1736596245669,-500.0,9.999e-05,2]
[348506919,1736596245679,-500.0,9.999e-05,2]
[348506920,1736596245688,-1000.0,9.999e-05,2]
[348506921,1736596245698,-1033.16,9.999e-05,2]
[348506922,1736596245707,-585.32,9.999e-05,2]
[348506923,1736596245717,-629.59,9.999e-05,2]
[348506924,1736596245727,-500.0,9.999e-05,2]
[348506925,1736596245736,-500.0,9.999e-05,2]
[348506926,1736596245745,-500.0,9.999e-05,2]
[348506927,1736596245755,-500.0,9.999e-05,2]
[348506928,1736596245765,-500.48454305,9.999e-05,2]
[348506929,1736596245775,-638.76,9.999e-05,2]
[348506930,1736596245786,-979.96,9.999e-05,2]
[348506931,1736596245797,-2504.72,9.999e-05,2]
[348506932,1736596245808,-1683.19,9.999e-05,2]
[348506933,1736596245817,-500.0,9.999e-05,2]
[348506934,1736596245826,-1644.65,9.999e-05,2]
[348506935,1736596245838,-635.59,9.999e-05,2]
[348506936,1736596245848,-1203.22,9.999e-05,2]
[348506937,1736596245858,-478.01231568,9.999e-05,2]
[348506938,1736596245868,-719.0,0.0001,2]
[348506939,1736596245878,-2319416.97580371,0.0001,2]
[348506940,1736596245887,-8543.84693569,0.0001,2]
[348506941,1736596245896,-197.25290979,0.0001,2]
[348506942,1736596245906,-183.64463145,0.0001,2]
[348506943,1736596245915,-151.0,0.0001,2]
[348506944,1736596245925,-136391.77986298,0.0001,2]
[348506945,1736596245935,-501.96,0.0001,2]
[348506946,1736596245944,-151.0,0.0001,2]
[348506947,1736596245954,-1393302.99533854,0.0001,2]
[348506948,1736596245963,-468.0,0.0001,2]
[348506949,1736596245973,-468.0,0.0001,2]
[348506950,1736596245983,-160.84965258,0.0001,2]
[348506951,1736596245992,-468.0,0.0001,2]
[348506952,1736596246003,-1000.0,0.0001,2]
[348506953,1736596246012,-1000.0,0.0001,2]
[348506954,1736596246022,-1000.0,0.0001,2]
[348506955,1736596246031,-1000.0,0.0001,2]
[348506956,1736596246040,-1000.0,0.0001,2]
[348506957,1736596246050,-1000.0,0.0001,2]
[348506958,1736596246060,-1000.0,0.0001,2]
[348506959,1736596246069,-1000.0,0.0001,2]
[348506960,1736596246078,-1000.0,0.0001,2]
[348506961,1736596246090,-1000.0,0.0001,2]
[348506962,1736596246099,-468.0,0.0001,2]
[348506963,1736596246108,-174.71650596,0.0001,2]
[348506964,1736596246118,-3000.0,0.0001,2]
[348506965,1736596246127,-3000.0,0.0001,2]
[348506966,1736596246135,-3000.0,0.0001,2]
[348506967,1736596246145,-3000.0,0.0001,2]
[348506968,1736596246155,-3000.0,0.0001,2]
[348506969,1736596246164,-3000.0,0.0001,2]
[348506970,1736596246172,-370.55573948,0.0001,2]
[348506971,1736596246181,-370.55573948,0.0001,2]
[348506972,1736596246193,-370.55573948,0.0001,2]
[348506973,1736596246202,-370.55573948,0.0001,2]
[348506974,1736596246211,-370.55573948,0.0001,2]
[348506975,1736596246220,-370.55573948,0.0001,2]
[348506976,1736596246229,-370.55573948,0.0001,2]
[348506977,1736596246239,-370.55573948,0.0001,2]
[348506978,1736596246248,-370.55573948,0.0001,2]
[348506979,1736596246268,-370.55573948,0.0001,2]
[348506980,1736596246279,-2580.23244121,0.0001,2]
[348506981,1736596246289,-192.411313,0.0001,2]
[348506982,1736596246299,-6191.92740601,0.0001,2]
[348506983,1736596246312,-2377.44585035,0.0001,2]
[348506984,1736596246321,-2377.44585034,0.0001,2]
[348506985,1736596246333,-2377.44585034,0.0001,2]
[348506986,1736596246343,-2377.44585034,0.0001,2]
[348506987,1736596246353,-2377.44585034,0.0001,2]
[348506988,1736596246362,-2377.44585034,0.0001,2]
[348506989,1736596246372,-2377.44585034,0.0001,2]
[348506990,1736596246382,-2377.44585034,0.0001,2]
[348506991,1736596246391,-2377.44585034,0.00010003,2]
[348506992,1736596246400,-249.99,0.00010005,2]
[348506993,1736596246410,-182.33,0.00010005,2]
[348506994,1736596246420,-167.27,0.00010032,2]
[348506995,1736596246429,-176.0,0.00010099,2]
[348506996,1736596246439,-1007.0,0.000101,2]
[348506997,1736596246448,-573.38,0.00010136,2]
[348506998,1736596246457,-838.87,0.00010137,2]
[348506999,1736596246467,-152.25,0.00010137,2]
[348507000,1736596246477,-13381.01376123,0.00010139,4]
[348507001,1736596246486,-2377.44585034,0.00010141,2]
[348507002,1736596246496,-500.0,0.00010169,2]
[348507003,1736596246505,-753.08,0.0001017,2]
[348507004,1736596246515,-810.39,0.0001017,2]
[348507005,1736596246526,-500.0,0.0001017,2]
[348507006,1736596246536,-1341.97,0.0001017,2]
[348507007,1736596246546,-500.0,0.0001017,2]
[348507008,1736596246555,-500.0,0.0001017,2]
[348507009,1736596246565,-500.0,0.0001017,2]
[348507010,1736596246575,-579.03,0.0001017,2]
[348507011,1736596246585,-500.0,0.0001017,2]
[348507012,1736596246596,-500.0,0.00010171,2]
[348507013,1736596246606,-500.0,0.00010171,2]
[348507014,1736596246616,-500.0,0.00010171,2]
[348507015,1736596246626,-500.0,0.00010171,2]
[348507016,1736596246635,-500.0,0.00010171,2]
[348507017,1736596246645,-500.0,0.00010171,2]
[348507018,1736596246654,-500.0,0.00010171,2]
[348507019,1736596246664,-500.0,0.00010171,2]
[348507020,1736596246674,-500.0,0.00010171,2]
[348507021,1736596246684,-500.0,0.00010171,2]
[348507022,1736596246694,-1049.23,0.00010171,2]
[348507023,1736596246703,-500.0,0.00010171,2]
[348507024,1736596246713,-500.0,0.00010171,2]
[348507025,1736596246723,-500.0,0.00010171,2]
[348507026,1736596246735,-500.0,0.00010171,2]
[348507027,1736596246744,-500.0,0.00010171,2]
[348507028,1736596246754,-500.0,0.00010171,2]
[348507029,1736596246764,-500.0,0.00010171,2]
[348507030,1736596246774,-500.0,0.00010171,2]
[348507031,1736596246783,-500.0,0.00010171,2]
[348507033,1736596246793,-500.0,0.00010171,2]
[348507034,1736596246803,-500.0,0.00010171,2]
[348507036,1736596246812,-500.0,0.00010171,2]
[348507037,1736596246822,-500.0,0.00010171,2]
[348507038,1736596246831,-1193.263054,0.00010171,2]
[348507039,1736596246841,-500.0,0.00010171,2]
[348507040,1736596246852,-500.0,0.00010171,2]
[348507042,1736596246862,-500.0,0.00010171,2]
[348507043,1736596246871,-500.0,0.00010171,2]
[348507044,1736596246881,-500.0,0.00010171,2]
[348507045,1736596246891,-1138.610443,0.00010171,2]
[348507046,1736596246901,-1195.58,0.00010171,2]
[348507047,1736596246910,-500.0,0.00010171,2]
[348507048,1736596246920,-500.0,0.00010171,2]
[348507049,1736596246930,-727.53,0.00010171,2]
[348507050,1736596246939,-500.0,0.00010171,2]
[348507051,1736596246949,-500.0,0.00010171,2]
[348507052,1736596246959,-3208.76,0.00010171,2]
[348507053,1736596246968,-500.0,0.00010171,2]
[348507054,1736596246978,-1528.87,0.00010171,2]
[348507055,1736596246988,-500.0,0.00010171,2]
[348507056,1736596246998,-500.0,0.00010171,2]
[348507057,1736596247008,-500.0,0.00010171,2]
[348507058,1736596247017,-4379.77,0.00010171,2]
[348507059,1736596247027,-706.78,0.00010171,2]
[348507060,1736596247037,-500.0,0.00010171,2]
[348507061,1736596247047,-500.0,0.00010171,2]
[348507062,1736596247057,-500.0,0.00010171,2]
[348507063,1736596247067,-500.0,0.00010171,2]
[348507064,1736596247077,-500.0,0.00010171,2]
[348507065,1736596247088,-510.47,0.00010171,2]
[348507066,1736596247098,-500.0,0.00010171,2]
[348507067,1736596247107,-500.0,0.00010171,2]
[348507068,1736596247117,-1939.28,0.00010171,2]
[348507069,1736596247127,-500.0,0.00010171,2]
[348507070,1736596247307,-500.0,0.00010171,2]
[348507071,1736596247317,-500.0,0.00010171,2]
[348507072,1736596247327,-500.0,0.00010171,2]
[348507073,1736596247339,-500.0,0.00010171,2]
[348507074,1736596247348,-1448.55,0.00010171,2]
[348507075,1736596247358,-833.11,0.00010171,2]
[348507076,1736596247368,-500.0,0.00010171,2]
[348507077,1736596247378,-500.0,0.00010171,2]
[348507078,1736596247387,-500.0,0.00010171,2]
[348507079,1736596247398,-2293.1,0.00010171,2]
[348507080,1736596247407,-500.0,0.00010171,2]
[348507081,1736596247417,-500.0,0.00010171,2]
[348507082,1736596247427,-500.0,0.00010171,2]
[348507083,1736596247437,-500.0,0.00010171,2]
[348507084,1736596247447,-500.0,0.00010171,2]
[348507085,1736596247456,-2381.62,0.00010171,2]
[348507086,1736596247466,-500.0,0.00010171,2]
[348507087,1736596247475,-2417.04,0.00010171,2]
[348507088,1736596247485,-500.0,0.00010171,2]
[348507089,1736596247495,-500.0,0.00010171,2]
[348507090,1736596247505,-500.0,0.00010171,2]
[348507091,1736596247514,-1391.2,0.00010171,2]
[348507092,1736596247524,-500.0,0.00010171,2]
[348507093,1736596247533,-500.0,0.00010171,2]
[348507094,1736596247543,-500.0,0.00010171,2]
[348507095,1736596247552,-500.0,0.00010171,2]
[348507096,1736596247561,-500.0,0.00010171,2]
[348507097,1736596247575,-500.0,0.00010171,2]
[348507098,1736596247586,-500.0,0.00010171,2]
[348507099,1736596247595,-1904.23,0.00010171,2]
[348507100,1736596247604,-500.0,0.00010171,2]
[348507101,1736596247614,-500.0,0.00010171,2]
[348507102,1736596247624,-500.0,0.00010171,2]
[348507103,1736596247634,-500.0,0.00010171,2]
[348507104,1736596247644,-4285.14,0.00010171,2]
[348507105,1736596247653,-1461.62,0.00010171,2]
[348507106,1736596247663,-500.0,0.00010171,2]
[348507107,1736596247673,-500.0,0.00010171,2]
[348507108,1736596247682,-500.0,0.00010171,2]
[348507109,1736596247692,-500.0,0.00010171,2]
[348507110,1736596247701,-958.11,0.00010171,2]
[348507111,1736596247710,-1217.3,0.00010171,2]
[348507112,1736596247720,-500.0,0.00010171,2]
[348507113,1736596247731,-958.31,0.00010171,2]
[348507114,1736596247742,-500.0,0.00010171,2]
[348507115,1736596247751,-2809.65,0.00010171,2]
[348507116,1736596247761,-500.0,0.00010171,2]
[348507117,1736596247771,-500.0,0.00010171,2]
[348507118,1736596247781,-1965.23,0.00010171,2]
[348507119,1736596247790,-170.59,0.00010171,2]
[348507120,1736596247800,-500.0,0.00010171,2]
[348507121,1736596247810,-523.72,0.00010171,2]
[348507122,1736596247820,-3459.51,0.00010171,2]
[348507123,1736596247830,-409.55912522,0.00010171,2]
[348507124,1736596247840,-536.4730397,0.00010171,2]
[348507125,1736596247850,-500.0,0.00010171,2]
[348507126,1736596247859,-500.0,0.00010171,2]
[348507127,1736596247869,-500.0,0.00010171,2]
[348507128,1736596247879,-500.0,0.00010171,2]
[348507129,1736596247888,-500.0,0.00010171,2]
[348507130,1736596247898,-2015.36,0.00010171,2]
[348507131,1736596247908,-1189.62,0.00010171,2]
[348507132,1736596247917,-500.0,0.00010171,2]
[348507133,1736596247927,-500.0,0.00010171,2]
[348507134,1736596247937,-164.84,0.00010171,2]
[348507135,1736596247946,-1834.7,0.00010171,2]
[348507136,1736596247955,-500.0,0.00010171,2]
[348507137,1736596247965,-1463.75,0.00010171,2]
[348507138,1736596247975,-947.2,0.00010171,2]
[348507139,1736596247984,-500.0,0.00010171,2]
[348507140,1736596247993,-2015.678,0.00010171,2]
[348507141,1736596248003,-1268.0,0.00010171,2]
[348507142,1736596248012,-150.241,0.00010171,2]
[348507143,1736596248022,-635.207,0.00010171,2]
[348507144,1736596248032,-567.439,0.00010171,2]
[348507145,1736596248042,-1861.0,0.00010171,2]
[348507146,1736596248051,-919.0,0.00010171,2]
[348507147,1736596248062,-2944.0,0.00010171,2]
[348507148,1736596248072,-1259.0,0.00010171,2]
[348507149,1736596248083,-820.0,0.00010171,2]
[348507150,1736596248093,-3978.0,0.00010171,2]
[348507151,1736596248102,-538.143,0.00010171,2]
[348507152,1736596248112,-9622.0,0.00010171,2]
[348507153,1736596248122,-1173.0,0.00010171,2]
[348507154,1736596248132,-166.565,0.00010171,2]
[348507155,1736596248142,-3896.0,0.00010171,2]
[348507156,1736596248152,-157.886,0.00010171,2]
[348507157,1736596248162,-1104.0,0.00010171,2]
[348507158,1736596248171,-500.0,0.00010172,2]
[348507159,1736596248181,-500.0,0.00010172,2]
[348507160,1736596248192,-500.0,0.00010172,2]
[348507161,1736596248202,-544.1965382,0.00010172,2]
[348507162,1736596248212,-500.0,0.00010172,2]
[348507163,1736596248221,-500.0,0.00010172,2]
[348507164,1736596248231,-500.0,0.00010172,2]